bitfinex/quotes_ETHUSD_20251125
["timestamp","ask_amount","ask_price","bid_price","bid_amount"]
[1764069420865,11.92448841,2897.2,2897.1,0.001]
[1764069430985,0.405504,2897.0,2896.8,0.001]
[1764069431151,8.01501615,2896.9,2896.8,0.001]
[1764069431476,8.49806525,2896.9,2896.8,0.001]
[1764069431696,8.63641538,2896.9,2896.8,0.001]
[1764069431875,9.38008882,2896.9,2896.8,0.001]
[1764069432194,0.404704,2896.7,2896.5,0.001]
[1764069432348,5.26319936,2896.7,2896.5,0.001]
[1764069432550,5.27575026,2896.7,2896.5,0.001]
[1764069432880,0.72559411,2896.6,2896.5,0.001]
[1764069433050,1.59325484,2896.6,2896.5,0.001]
[1764069433247,8.88096042,2896.6,2896.5,0.001]
[1764069433947,12.33328383,2896.6,2896.1,0.001]
[1764069434183,5.05905026,2896.5,2896.1,0.001]
[1764069434660,5.20173866,2896.5,2896.1,0.001]
[1764069435479,8.65418126,2896.5,2896.1,0.001]
[1764069435683,8.64163036,2896.5,2896.1,0.001]
[1764069437893,8.36403036,2896.5,2896.1,0.6871]
[1764069438957,8.36403036,2896.5,2896.2,0.4992]
[1764069439768,8.14083036,2896.5,2896.4,0.4569]
[1764069439986,8.35883036,2896.5,2896.4,0.9551]
[1764069440186,7.95332636,2896.5,2896.4,0.9551]
[1764069440491,7.73532636,2896.5,2896.4,0.9551]
[1764069440680,7.95332636,2896.5,2896.4,0.9551]
[1764069443804,7.00973225,2896.5,2896.4,0.9551]
[1764069443964,7.06703225,2896.5,2896.4,0.001]
[1764069444161,7.79262636,2896.5,2896.4,0.001]
[1764069448358,8.28032636,2896.5,2896.4,0.001]
[1764069448595,9.4305064,2896.5,2896.4,0.001]
[1764069456300,13.0667064,2896.5,2896.4,0.001]
[1764069456829,8.9420064,2896.5,2896.4,0.001]
[1764069457322,5.78864484,2896.5,2896.4,0.4606]
[1764069457501,8.8847064,2896.5,2896.4,0.9486]
[1764069459159,8.8847064,2896.5,2896.4,0.4606]
[1764069459320,8.8848849,2896.5,2896.4,0.4606]
[1764069459813,8.8848849,2896.5,2896.4,0.001]
[1764069459814,8.9421849,2896.5,2896.4,0.001]
[1764069460004,9.4298849,2896.5,2896.4,0.001]
[1764069460627,9.10782417,2896.5,2896.4,0.001]
[1764069460988,9.10982417,2896.5,2896.4,0.001]
[1764069461900,10.04089235,2896.5,2896.4,0.001]
[1764069462511,1.13109811,2896.4,2896.2,0.001]
[1764069462725,0.4229549,2896.3,2896.2,0.001]
[1764069463021,6.76925273,2896.3,2896.2,0.001]
[1764069463226,5.97656723,2896.3,2896.2,0.001]
[1764069463444,1.13109811,2896.2,2896.1,0.001]
[1764069463594,4.22715967,2895.9,2895.8,0.001]
[1764069463795,4.97741421,2895.9,2895.8,0.001]
[1764069464194,5.46641421,2895.9,2895.8,0.001]
[1764069465422,8.91957212,2895.9,2895.8,0.001]
[1764069466427,12.55657212,2895.9,2895.8,0.001]
[1764069466624,8.91957212,2895.9,2895.8,0.001]
[1764069467492,9.57807212,2895.9,2895.8,0.001]
[1764069467898,9.79607212,2895.9,2895.8,0.001]
[1764069468336,10.11923336,2895.9,2895.8,0.001]
[1764069468833,9.62713336,2895.9,2895.8,0.001]
[1764069469129,10.11923336,2895.9,2895.8,0.001]
[1764069469825,9.46073336,2895.9,2895.8,0.001]
[1764069470029,9.45533336,2895.9,2895.8,0.9486]
[1764069471345,9.04982936,2895.9,2895.8,0.4606]
[1764069471545,9.04982936,2895.9,2895.8,0.9464]
[1764069471546,8.08697482,2895.9,2895.8,0.9464]
[1764069472045,8.08697482,2895.9,2895.8,0.4606]
[1764069473014,7.76381358,2895.9,2895.8,0.4606]
[1764069473247,8.08659454,2895.9,2895.8,0.9464]
[1764069474248,8.83031498,2895.9,2895.8,0.9464]
[1764069474451,8.08659454,2895.9,2895.8,0.9464]
[1764069475248,8.83004838,2895.9,2895.8,0.9464]
[1764069475665,9.23555238,2895.9,2895.8,0.4606]
[1764069475967,9.23555238,2895.9,2895.8,0.001]
[1764069475968,9.69805238,2895.9,2895.8,0.001]
[1764069479845,9.78465238,2895.9,2895.8,0.001]
[1764069480180,9.78385238,2895.9,2895.8,0.001]
[1764069480339,9.69725238,2895.9,2895.8,0.001]
[1764069482272,1.13109811,2895.5,2895.3,0.001]
[1764069482476,1.13109811,2895.5,2895.2,0.001]
[1764069482477,1.35097434,2895.4,2895.2,0.001]
[1764069482673,4.14583663,2895.3,2895.2,0.001]
[1764069482837,5.34627911,2895.3,2895.2,0.001]
[1764069483272,2.24881755,2895.3,2895.2,0.9203]
[1764069483460,1.50477507,2895.3,2895.2,1.0203]
[1764069484041,4.95864858,2895.3,2895.2,1.0203]
[1764069487184,4.95864858,2895.3,2895.2,0.9203]
[1764069487476,4.95864858,2895.3,2895.2,1.0203]
[1764069488076,3.45376207,2895.4,2895.2,1.0203]
[1764069488077,6.90703134,2895.6,2895.2,1.0203]
[1764069488376,3.45351567,2895.6,2895.5,0.1]
[1764069488553,4.50211406,2895.6,2895.5,0.5629]
[1764069488756,4.50211406,2895.6,2895.5,1.0193]
[1764069489066,4.95851406,2895.6,2895.5,1.0193]
[1764069492707,4.50211406,2895.6,2895.5,1.0193]
[1764069494978,1.04859839,2895.6,2895.5,1.0193]
[1764069495274,0.72559411,2895.6,2895.5,1.0193]
[1764069496478,4.17910978,2895.6,2895.5,1.0193]
[1764069496673,4.50211045,2895.6,2895.5,1.0193]
[1764069496871,4.50411045,2895.6,2895.5,1.0193]
[1764069497093,4.18110978,2895.6,2895.5,1.0193]
[1764069498212,0.002,2895.6,2895.5,1.0193]
[1764069498522,3.09761671,2895.6,2895.5,1.0193]
[1764069500229,6.55113238,2895.6,2895.5,1.0193]
[1764069504186,6.55033238,2895.6,2895.5,1.0193]
[1764069505926,3.45471567,2895.6,2895.5,1.0193]
[1764069507716,0.0012,2895.6,2895.5,0.9553]
[1764069508184,0.0012,2895.6,2895.5,1.0553]
[1764069511779,0.0012,2895.6,2895.5,1.2733]
[1764069522008,0.0012,2895.6,2895.5,1.0553]
[1764069522207,0.0012,2895.6,2895.5,1.2733]
[1764069524796,0.0012,2895.6,2895.5,1.0553]
[1764069525001,0.0012,2895.6,2895.5,1.2733]
[1764069525510,3.09681671,2895.6,2895.5,1.2733]
[1764069525709,3.09681671,2895.6,2895.5,0.7809]
[1764069526593,0.0012,2895.6,2895.5,1.2733]
[1764069526793,0.0012,2895.6,2895.5,1.0553]
[1764069526997,0.0012,2895.6,2895.5,1.2733]
[1764069528123,0.0012,2895.6,2895.5,4.72693495]
[1764069528291,0.0004,2895.6,2895.5,4.76147129]
[1764069530520,0.0004,2895.6,2895.5,5.8925694]
[1764069531222,0.0004,2895.6,2895.5,16.2737854]
[1764069531381,0.0004,2895.6,2895.5,16.23924906]
[1764069531785,0.002,2895.9,2895.8,4.32671482]
[1764069531993,0.002,2895.9,2895.8,4.85314759]
[1764069532288,0.002,2896.1,2896.0,6.74177982]
[1764069532598,0.002,2896.2,2896.1,1.23109811]
[1764069532915,0.002,2896.2,2896.1,5.82231755]
[1764069533294,0.002,2896.2,2896.1,6.04031755]
[1764069533821,0.002,2896.2,2896.1,5.82231755]
[1764069533999,0.002,2896.2,2896.1,5.31472344]
[1764069534198,0.002,2896.2,2896.1,5.09672344]
[1764069534392,0.002,2896.2,2896.1,5.31472344]
[1764069535520,0.002,2896.2,2896.1,4.90921944]
[1764069536219,0.002,2896.2,2896.1,4.69121944]
[1764069536421,0.002,2896.2,2896.1,4.90921944]
[1764069537500,0.002,2896.2,2896.1,5.04752222]
[1764069540226,0.002,2896.2,2896.1,4.59532222]
[1764069540439,0.002,2897.3,2896.1,4.59532222]
[1764069540440,3.09276334,2899.5,2899.0,0.4942]
[1764069540654,3.09276334,2899.5,2897.9,0.18]
[1764069540655,1.06454765,2901.4,2900.8,0.1]
[1764069540869,0.1835,2901.8,2900.8,4.18397657]
[1764069541016,0.1515,2902.0,2900.8,14.49958998]
[1764069541210,0.4524,2902.2,2901.9,0.1]
[1764069541443,0.1835,2902.3,2902.2,0.1]
[1764069541657,0.1539,2903.0,2902.2,0.95939898]
[1764069541957,0.1539,2903.0,2902.9,0.1]
[1764069543109,3.44435642,2903.3,2902.6,2.68177926]
[1764069543349,0.4524,2903.1,2903.0,1.92204783]
[1764069543531,3.89699371,2903.1,2903.0,1.92204783]
[1764069543736,4.39649371,2903.1,2903.0,0.1]
[1764069543934,4.39649371,2903.1,2903.0,1.91573563]
[1764069544324,4.39649371,2903.1,2903.0,0.1]
[1764069544732,4.39649371,2903.1,2903.0,1.81081153]
[1764069544733,9.17776045,2903.1,2903.0,1.81081153]
[1764069544922,0.72559411,2903.0,2902.9,1.20745993]
[1764069545125,0.72559411,2903.0,2902.8,1.20745993]
[1764069545126,1.17799411,2903.0,2902.8,1.20745993]
[1764069545410,0.6359,2902.9,2902.8,0.90584036]
[1764069545634,5.30582514,2902.9,2902.8,0.90584036]
[1764069546030,0.72559411,2902.8,2902.7,0.90584036]
[1764069546247,1.39899411,2902.8,2902.5,0.90584036]
[1764069546420,0.2385,2902.6,2902.5,0.90584036]
[1764069546931,0.6909,2902.6,2902.5,0.90584036]
[1764069547331,4.13608707,2902.6,2902.5,0.90584036]
[1764069548427,4.13608707,2902.6,2902.2,0.90584036]
[1764069548428,0.72559411,2902.5,2902.2,0.90584036]
[1764069548612,0.4968,2902.4,2902.2,0.90584036]
[1764069548821,0.4968,2902.4,2902.3,0.90584036]
[1764069548822,0.4524,2902.4,2902.3,0.90584036]
[1764069549052,0.6734,2902.4,2902.3,0.90584036]
[1764069549345,1.1729,2902.4,2902.1,0.90584036]
[1764069549549,0.2385,2902.2,2902.1,0.1]
[1764069549949,0.6909,2902.2,2902.1,1.00584036]
[1764069550455,0.6909,2902.2,2902.1,0.1]
[1764069550632,0.6909,2902.2,2902.1,1.00584036]
[1764069551431,4.13656191,2902.2,2902.1,1.00584036]
[1764069551859,4.13656191,2902.2,2902.1,0.1]
[1764069552065,4.14911281,2902.2,2902.1,0.1]
[1764069552285,4.14831281,2902.2,2902.0,0.1]
[1764069552570,0.9492,2902.1,2902.0,0.1]
[1764069552727,0.9492,2902.1,2902.0,1.00112517]
[1764069552927,0.9492,2902.1,2901.9,0.90212517]
[1764069553165,0.6919,2902.0,2901.9,0.101]
[1764069554271,4.13779937,2902.0,2901.9,0.101]
[1764069555067,4.13779937,2902.0,2901.9,0.001]
[1764069555269,4.86339348,2902.0,2901.9,0.001]
[1764069558967,5.89909944,2902.0,2901.9,0.001]
[1764069559175,5.91165034,2902.0,2901.9,0.001]
[1764069560647,4.87594438,2902.0,2901.9,0.001]
[1764069560853,4.86339348,2902.0,2901.9,0.001]
[1764069567223,4.87594438,2902.0,2901.9,0.001]
[1764069568293,5.19601833,2902.0,2901.9,0.001]
[1764069568875,5.18346743,2902.0,2901.9,0.001]
[1764069570594,5.18346743,2902.0,2899.9,6.14646443]
[1764069570595,0.6504,2901.0,2899.9,6.14646443]
[1764069570787,0.6504,2901.0,2899.1,0.6202]
[1764069570788,0.6504,2900.0,2899.1,0.6202]
[1764069571131,0.72559411,2899.7,2899.6,0.1]
[1764069571336,1.04763274,2899.7,2899.1,0.6202]
[1764069571628,1.06257041,2899.6,2899.3,0.1]
[1764069571779,1.06257041,2899.5,2899.4,0.1]
[1764069573251,5.23703501,2899.5,2899.4,0.1]
[1764069573414,1.06257041,2899.5,2899.4,1.0234]
[1764069573615,4.17419194,2899.8,2899.7,0.1]
[1764069573948,5.23417005,2899.8,2899.7,0.1]
[1764069574315,9.15126788,2899.8,2899.6,0.1]
[1764069574641,1.05997811,2899.7,2899.6,0.1]
[1764069574829,1.28377811,2899.7,2899.6,0.1]
[1764069575323,5.45800483,2899.7,2899.6,0.1]
[1764069575529,5.23420483,2899.7,2899.6,0.1]
[1764069576128,5.23340483,2899.7,2899.6,0.1]
[1764069576303,5.70190483,2899.7,2899.6,0.1]
[1764069576985,16.51720266,2899.7,2898.7,0.1633]
[1764069577122,1.93415125,2899.6,2899.1,0.1]
[1764069577447,6.89797888,2899.4,2899.1,0.1]
[1764069577819,0.4685,2899.2,2899.1,0.1]
[1764069578024,0.4685,2899.2,2898.6,0.1]
[1764069578241,0.4685,2898.7,2898.6,0.1]
[1764069578762,0.72559411,2899.3,2898.9,0.1]
[1764069578968,0.95795458,2899.2,2898.9,0.1]
[1764069579365,3.44934634,2899.1,2898.9,0.1]
[1764069579662,4.17494045,2899.1,2899.0,0.1]
[1764069580026,4.17494045,2899.1,2899.0,0.5665]
[1764069580939,4.17494045,2899.1,2899.0,0.1]
[1764069581351,4.64344045,2899.1,2899.0,0.1]
[1764069581571,4.17494045,2899.1,2899.0,0.5665]
[1764069581946,4.17494045,2899.1,2899.0,0.4665]
[1764069582183,4.17494045,2899.1,2899.0,0.1]
[1764069583574,4.17494045,2899.1,2899.0,0.5665]
[1764069583957,4.17494045,2899.1,2898.7,0.1]
[1764069583958,8.56218679,2899.1,2898.7,0.1]
[1764069584164,8.78318679,2899.1,2898.7,0.1]
[1764069584538,4.86444045,2899.1,2899.0,0.1]
[1764069585153,4.39594045,2899.1,2899.0,0.1]
[1764069585938,0.72559411,2899.0,2898.4,0.1]
[1764069586143,0.2934,2898.7,2898.4,0.101]
[1764069586363,0.4668,2898.5,2898.4,0.101]
[1764069586746,0.6513,2898.9,2898.4,0.101]
[1764069586950,0.4694,2898.8,2898.4,0.101]
[1764069588050,6.89964466,2898.7,2898.4,0.101]
[1764069588581,7.36904466,2898.7,2898.4,0.101]
[1764069589572,0.4685,2898.5,2898.4,0.001]
[1764069589948,0.9379,2898.5,2898.4,0.001]
[1764069590167,4.38796037,2898.5,2898.4,0.001]
[1764069590769,5.51905848,2898.5,2898.4,0.001]
[1764069591079,6.57335884,2898.5,2898.4,0.001]
[1764069591992,6.58590974,2898.5,2898.4,0.001]
[1764069592375,6.57335884,2898.5,2898.4,0.001]
[1764069594648,6.58590974,2898.5,2898.4,0.001]
[1764069594850,6.80690974,2898.5,2898.4,0.001]
[1764069595875,4.77209811,2898.4,2898.1,0.001]
[1764069596086,5.12485502,2897.9,2897.8,0.001]
[1764069596385,5.12485502,2897.9,2895.5,0.001]
[1764069596386,10.35482532,2897.2,2896.4,0.1]
[1764069596585,1.41619411,2897.1,2896.4,0.1]
[1764069596742,0.405504,2897.0,2896.4,0.1]
[1764069596943,0.4673,2896.5,2896.2,0.1]
[1764069597481,0.221,2896.6,2896.2,0.1]
[1764069598345,4.17803671,2896.5,2896.4,0.1]
[1764069599783,8.56157931,2896.5,2895.9,0.2638]
[1764069599983,0.72559411,2896.4,2895.9,0.2638]
[1764069600174,0.72479411,2896.4,2896.0,0.1]
[1764069600374,6.90560044,2896.2,2895.5,0.101]
[1764069600688,0.221,2896.1,2895.5,0.101]
[1764069600874,0.6861,2896.1,2895.5,0.101]
[1764069601256,0.221,2896.1,2895.5,0.101]
[1764069601553,0.4651,2896.0,2895.5,0.101]
[1764069602666,0.72559411,2895.8,2895.5,0.101]
[1764069602875,0.221,2895.7,2895.5,0.101]
[1764069603878,0.221,2895.7,2895.6,0.4522]
[1764069604275,0.687,2895.7,2895.5,0.001]
[1764069604784,3.45351567,2895.6,2895.5,0.001]
[1764069605152,3.45351567,2895.6,2895.5,0.4532]
[1764069606080,3.67440215,2895.7,2895.5,0.4532]
[1764069607413,3.67440215,2895.7,2895.5,0.001]
[1764069607414,1.65669411,2895.6,2895.5,0.001]
[1764069609184,5.11020978,2895.6,2895.5,0.001]
[1764069609716,4.64510978,2895.6,2895.5,0.001]
[1764069610096,5.11020978,2895.6,2895.5,0.001]
[1764069611309,5.12276068,2895.6,2895.5,0.001]
[1764069611977,5.52826468,2895.6,2895.5,0.001]
[1764069612228,6.581822,2895.6,2895.5,0.001]
[1764069612924,6.5692711,2895.6,2895.5,0.001]
[1764069613282,10.83839631,2895.6,2895.5,0.001]
[1764069613487,10.82584541,2895.6,2895.5,0.001]
[1764069614716,12.05173386,2895.6,2895.5,0.001]
[1764069615115,8.22585234,2895.4,2895.3,0.001]
[1764069615314,15.36765449,2895.4,2895.3,0.001]
[1764069615532,15.83275449,2895.4,2895.3,0.001]
[1764069616011,10.96754088,2895.4,2895.3,0.001]
[1764069616436,11.49083383,2895.4,2895.3,0.001]
[1764069616651,1.13109811,2895.3,2895.2,0.001]
[1764069616825,5.18699248,2895.3,2895.2,0.001]
[1764069617439,7.41665415,2895.3,2895.2,0.001]
[1764069617646,7.40410325,2895.3,2895.2,0.001]
[1764069618133,10.85797676,2895.3,2895.1,0.001]
[1764069618337,2.91910633,2895.2,2895.1,0.001]
[1764069618541,4.75921999,2895.2,2895.1,0.001]
[1764069619421,6.98867345,2895.2,2895.1,0.001]
[1764069619619,6.97612255,2895.2,2895.1,0.001]
[1764069621024,7.11457852,2895.2,2895.1,0.001]
[1764069621343,8.93210269,2895.2,2895.1,0.001]
[1764069623358,7.11457852,2895.2,2895.1,0.001]
[1764069624158,7.11377852,2895.2,2895.1,0.001]
[1764069624357,1.13109811,2895.1,2895.0,0.001]
[1764069624553,2.42221384,2895.1,2895.0,0.001]
[1764069624975,3.5731752,2895.1,2895.0,0.001]
[1764069625174,1.72875894,2895.1,2895.0,0.001]
[1764069625377,5.18287106,2895.1,2895.0,0.001]
[1764069625788,7.94324222,2895.1,2895.0,0.001]
[1764069625951,9.84687194,2895.1,2895.0,0.001]
[1764069626358,8.66467194,2895.1,2895.0,0.001]
[1764069626558,4.49857106,2895.1,2895.0,0.4637]
[1764069626758,5.95034724,2895.1,2895.0,0.4637]
[1764069628381,4.71857106,2895.1,2895.0,0.4637]
[1764069629559,4.71857106,2895.1,2895.0,0.001]
[1764069629560,5.19542196,2895.1,2895.0,0.001]
[1764069629967,7.04299026,2895.1,2895.0,0.001]
[1764069630268,7.43594336,2895.1,2895.0,0.001]
[1764069630469,6.08627506,2895.1,2895.0,0.001]
[1764069632292,7.93384336,2895.1,2895.0,0.001]
[1764069633765,6.70184937,2895.1,2895.0,0.001]
[1764069633963,9.55293808,2895.1,2894.8,0.001]
[1764069634271,10.00216556,2895.0,2894.8,0.001]
[1764069634473,0.72559411,2894.9,2894.8,0.001]
[1764069634668,2.19965894,2894.9,2894.8,0.001]
[1764069635463,6.24616294,2894.9,2894.5,0.001]
[1764069635677,0.405504,2894.4,2893.1,0.4976]
[1764069635995,0.9265087,2893.3,2893.1,0.5976]
[1764069636194,1.28007113,2893.2,2893.1,0.5976]
[1764069636493,4.7364516,2893.2,2893.1,0.5976]
[1764069636662,4.7364516,2893.2,2893.1,1.0603]
[1764069637293,5.46204571,2893.2,2893.1,0.4627]
[1764069637680,6.38855441,2893.2,2893.1,0.4627]
[1764069638190,5.46204571,2893.2,2893.1,0.4627]
[1764069638489,0.72559411,2893.1,2892.0,0.1647]
[1764069638697,0.72559411,2893.1,2892.6,0.4976]
[1764069638698,1.9858282,2893.0,2892.6,0.4976]
[1764069638865,1.06007113,2892.9,2892.6,0.4976]
[1764069639069,1.28007113,2892.8,2892.6,0.4976]
[1764069639264,1.06007113,2892.7,2892.6,0.5976]
[1764069639568,1.06007113,2892.7,2892.6,1.0603]
[1764069639774,0.31886483,2892.7,2892.6,1.0603]
[1764069639987,1.06007113,2892.7,2892.6,1.0603]
[1764069640591,4.51704903,2892.7,2892.6,1.0603]
[1764069641310,7.97402693,2892.7,2892.5,0.001]
[1764069641601,0.4643,2892.6,2892.5,0.001]
[1764069641783,6.78244352,2892.6,2892.5,0.001]
[1764069641985,1.78650171,2892.6,2892.5,0.9613]
[1764069642293,5.76809859,2892.6,2892.5,0.9613]
[1764069642593,5.46459913,2892.6,2892.5,0.9613]
[1764069643189,5.24359913,2892.6,2892.5,0.9613]
[1764069643492,5.46459913,2892.6,2892.5,0.9613]
[1764069645278,3.4569779,2892.7,2892.5,0.9613]
[1764069645279,0.221,2892.7,2892.5,0.9613]
[1764069645519,0.221,2892.7,2892.6,1.0603]
[1764069646223,3.45651766,2893.1,2892.6,1.0603]
[1764069646522,3.45602211,2893.5,2893.2,0.7275]
[1764069646680,2.00671356,2893.4,2893.2,0.6275]
[1764069646877,0.94659411,2893.4,2893.2,0.6624]
[1764069647216,0.94659411,2893.4,2893.3,0.4627]
[1764069647425,2.00660612,2893.4,2893.3,0.4627]
[1764069647722,2.01915702,2893.4,2893.3,0.4627]
[1764069648019,2.00660612,2893.4,2893.3,0.4627]
[1764069648189,2.00580612,2893.4,2893.3,0.4627]
[1764069648411,5.46194768,2893.4,2893.3,0.4627]
[1764069649233,12.8385308,2893.4,2892.9,0.1648]
[1764069649380,0.32083053,2893.3,2892.9,0.1648]
[1764069649718,0.32083053,2893.3,2892.9,0.6624]
[1764069649873,0.32083053,2893.3,2893.2,0.4627]
[1764069650609,4.50268565,2893.3,2893.2,0.4627]
[1764069650932,4.50268565,2893.3,2893.2,0.9187]
[1764069651119,4.50268565,2893.3,2893.2,0.4627]
[1764069651280,4.18185512,2893.3,2893.2,0.4627]
[1764069652229,4.18185512,2893.3,2893.2,0.9187]
[1764069652615,0.72559411,2893.3,2893.2,1.0187]
[1764069654929,4.18185512,2893.3,2893.2,1.0187]
[1764069655726,4.18185512,2893.3,2893.2,0.9187]
[1764069655965,4.18185512,2893.3,2893.2,1.0187]
[1764069656844,0.72559411,2893.3,2893.2,1.0187]
[1764069657350,4.18185512,2893.3,2893.2,0.4627]
[1764069657645,3.45626101,2893.3,2893.2,1.0187]
[1764069658546,3.45626101,2893.3,2893.2,0.4933]
[1764069659050,0.002,2893.4,2893.3,0.1]
[1764069659214,0.002,2893.4,2893.3,0.5933]
[1764069659425,0.002,2893.4,2893.3,1.0634]
[1764069661554,0.002,2893.4,2893.3,0.4933]
[1764069661760,0.3236193,2893.4,2893.3,0.4933]
[1764069662320,0.3236193,2893.4,2893.3,0.5933]
[1764069662925,0.7902193,2893.4,2893.1,0.001]
[1764069663127,6.91252202,2893.3,2893.1,0.001]
[1764069663444,3.45626101,2893.3,2893.2,0.1]
[1764069663632,3.77837925,2893.3,2893.2,1.0634]
[1764069663953,0.32211824,2893.3,2893.2,1.0634]
[1764069664362,3.45820814,2893.4,2893.2,1.0634]
[1764069664363,3.45820814,2893.4,2893.2,0.9634]
[1764069664527,3.45820814,2893.4,2893.3,1.0634]
[1764069664852,3.78053515,2893.4,2893.3,1.0634]
[1764069665033,0.32432701,2893.4,2893.3,1.0634]
[1764069665554,0.002,2893.4,2893.3,1.0634]
[1764069668844,0.002,2893.4,2893.3,4.51966101]
[1764069669023,0.002,2893.4,2893.3,1.0634]
[1764069672164,0.0012,2893.4,2893.3,1.0634]
[1764069675461,0.0012,2893.4,2893.3,1.0644]
[1764069677833,0.0012,2893.4,2893.3,4.52066101]
[1764069678276,0.0012,2893.4,2893.3,1.0644]
[1764069679331,0.0012,2893.4,2893.3,4.52066101]
[1764069683854,0.0012,2893.4,2893.3,4.55522362]
[1764069684174,0.0012,2893.4,2893.3,4.52066101]
[1764069685642,0.0012,2893.4,2893.3,1.0644]
[1764069685864,0.0012,2893.4,2893.3,4.52066101]
[1764069687581,0.4571,2893.4,2893.3,0.001]
[1764069687870,0.0012,2893.4,2893.3,0.5632]
[1764069690552,0.4571,2893.4,2893.3,0.101]
[1764069690788,0.9141,2893.4,2893.3,0.101]
[1764069691573,0.4571,2893.4,2893.3,0.101]
[1764069692382,3.91324156,2893.4,2893.3,0.101]
[1764069693891,4.37024156,2893.4,2893.3,0.101]
[1764069695112,0.4571,2893.4,2893.3,0.101]
[1764069695605,0.0012,2893.4,2893.3,0.5632]
[1764069695970,0.0012,2893.4,2893.3,1.0173]
[1764069696191,0.0012,2893.4,2893.3,4.47356101]
[1764069696192,0.0004,2893.4,2893.3,4.47356101]
[1764069699492,0.0004,2893.4,2893.3,4.69356101]
[1764069699711,0.0004,2893.4,2893.3,5.82465912]
[1764069699916,0.0004,2893.4,2893.3,5.85922173]
[1764069700374,0.0004,2893.4,2893.3,5.82465912]
[1764069710210,0.0004,2893.4,2893.3,5.85922173]
[1764069711116,0.0004,2893.4,2893.3,5.82465912]
[1764069711517,0.0004,2893.4,2893.3,5.85922173]
[1764069711836,0.002,2893.7,2893.3,16.56174375]
[1764069712036,0.002,2893.7,2893.6,4.81875475]
[1764069712217,0.002,2893.7,2893.6,4.85331377]
[1764069712424,0.002,2893.7,2893.6,5.33791377]
[1764069713836,0.002,2893.7,2893.6,8.79381645]
[1764069714136,0.002,2894.0,2893.9,0.505504]
[1764069714337,0.002,2894.0,2893.9,1.212404]
[1764069714517,0.002,2894.0,2893.9,1.697004]
[1764069715237,0.002,2894.0,2893.9,1.73155944]
[1764069715427,0.002,2894.0,2893.9,1.697004]
[1764069716023,0.002,2894.0,2893.9,5.87814253]
[1764069720258,0.0012,2894.0,2893.9,5.87814253]
[1764069725227,0.0012,2894.0,2893.9,5.86454253]
[1764069726338,0.4823,2894.0,2893.9,4.50013853]
[1764069726743,0.0012,2894.0,2893.9,4.50013853]
[1764069727287,0.0012,2894.0,2893.9,4.96623853]
[1764069728854,0.0012,2894.0,2893.9,5.43723853]
[1764069729562,0.0012,2894.0,2893.9,4.96623853]
[1764069732549,0.0012,2894.0,2893.9,4.74723853]
[1764069732750,0.0012,2894.0,2893.9,4.96623853]
[1764069738686,0.4823,2894.0,2893.9,4.18113853]
[1764069738987,0.9466,2894.0,2893.9,4.50013853]
[1764069739353,0.4823,2894.0,2893.9,4.50013853]
[1764069739556,0.0012,2894.0,2893.9,5.43723853]
[1764069741376,0.0012,2894.0,2893.9,5.47179397]
[1764069741575,0.0012,2894.0,2893.9,5.43723853]
[1764069741782,0.0012,2894.0,2893.9,4.96623853]
[1764069742490,0.0012,2894.0,2893.9,5.00079397]
[1764069742789,0.0012,2894.0,2893.9,5.43043853]
[1764069743159,0.0012,2894.0,2893.9,4.50013853]
[1764069744256,0.0004,2894.0,2893.9,4.96093853]
[1764069744456,0.0004,2894.0,2893.9,4.96193853]
[1764069746602,0.0004,2894.0,2893.9,5.42613853]
[1764069746894,0.0004,2894.0,2893.9,5.46069397]
[1764069747058,0.0004,2894.0,2893.9,5.42613853]
[1764069747558,0.0004,2894.0,2893.9,5.46069397]
[1764069747754,0.0004,2894.0,2893.9,5.20713853]
[1764069747961,0.4754,2894.0,2893.9,4.50113853]
[1764069748960,0.9504,2894.0,2893.9,4.50113853]
[1764069750191,0.4754,2894.0,2893.9,4.50113853]
[1764069750372,0.0004,2894.0,2893.9,4.50113853]
[1764069750577,0.0004,2894.0,2893.9,4.96193853]
[1764069750770,0.0004,2894.0,2893.9,5.86619797]
[1764069751184,0.0004,2894.0,2893.9,5.83164253]
[1764069753300,0.0004,2894.0,2893.9,5.36744253]
[1764069753598,0.0004,2894.0,2893.9,4.90664253]
[1764069753910,0.4754,2894.0,2893.9,4.90664253]
[1764069754207,0.4754,2894.0,2893.9,4.50113853]
[1764069754405,0.9504,2894.0,2893.9,4.50113853]
[1764069754575,0.4754,2894.0,2893.9,4.50113853]
[1764069754913,0.4754,2894.0,2893.9,4.28213853]
[1764069755085,0.9504,2894.0,2893.9,4.50113853]
[1764069755266,0.9504,2894.0,2893.9,1.04559411]
[1764069755700,0.9504,2894.0,2893.9,3.77554442]
[1764069757713,0.9504,2894.0,2893.9,0.32]
[1764069759279,0.9504,2894.0,2893.9,0.001]
[1764069759484,0.9504,2894.0,2893.9,0.101]
[1764069759682,0.9504,2894.0,2893.9,0.001]
[1764069759904,4.40582501,2894.0,2893.9,0.101]
[1764069763721,0.9504,2894.0,2893.9,0.101]
[1764069764010,4.40582501,2894.0,2893.9,0.101]
[1764069768410,4.40502501,2894.0,2893.9,0.101]
[1764069768598,4.72751129,2894.0,2893.9,0.101]
[1764069768803,4.72751129,2894.0,2893.9,0.001]
[1764069769789,4.74006219,2894.0,2893.9,0.001]
[1764069769995,4.72751129,2894.0,2893.9,0.001]
[1764069772083,4.74006219,2894.0,2893.9,0.001]
[1764069772283,4.72751129,2894.0,2893.9,0.001]
[1764069773218,4.74006219,2894.0,2893.9,0.001]
[1764069775117,4.72751129,2894.0,2893.9,0.001]
[1764069778489,4.72951129,2894.0,2893.9,0.001]
[1764069778686,4.72951129,2894.0,2893.9,0.101]